fUST/lending_fUST_20240817
["ID","MTS","AMOUNT","RATE_DAILY","PERIOD"]
[335149098,1723890736320,-500.0,0.00028219,2]
[335149099,1723890736331,-500.0,0.00028219,2]
[335149100,1723890736343,-500.0,0.00028219,2]
[335149101,1723890736355,-500.0,0.00028219,2]
[335149102,1723890736367,-254.82054056,0.00028219,2]
[335149103,1723890736378,-151.0,0.00028219,5]
[335149104,1723890736389,-575.93573962,0.00028219,2]
[335149105,1723890736400,-678.901847,0.00028219,7]
[335149106,1723890736411,-151.0,0.00028219,7]
[335149107,1723890736422,-678.901847,0.00028219,7]
[335149108,1723890736433,-528.61894067,0.00028219,2]
[335149109,1723890736443,-151.0,0.00028219,7]
[335149110,1723890736452,-473.00151975,0.00028219,2]
[335149111,1723890736464,-271.364326,0.00028219,7]
[335149112,1723890736475,-885.99725094,0.00028219,2]
[335149113,1723890736485,-501.433027,0.00028219,2]
[335149114,1723890736495,-501.433027,0.00028219,2]
[335149115,1723890736506,-642.80274276,0.00028219,2]
[335149116,1723890736517,-529.27193942,0.00028219,2]
[335149117,1723890736528,-3128.23403905,0.00028219,2]
[335149118,1723890736538,-500.68673863,0.00028219,2]
[335149119,1723890736550,-803.858624,0.00028219,7]
[335149120,1723890736560,-803.858624,0.00028219,7]
[335149121,1723890736571,-1197.15676497,0.00028219,2]
[335149122,1723890736582,-663.41743411,0.00028219,2]
[335149123,1723890736592,-553.57742381,0.00028219,2]
[335149124,1723890736605,-833.42,0.00028219,2]
[335149125,1723890736615,-593.71268282,0.00028219,2]
[335149126,1723890736625,-635.29066559,0.00028219,2]
[335149127,1723890736637,-1678.33184092,0.00028219,2]
[335149128,1723890736648,-523.86854265,0.00028219,2]
[335149129,1723890736661,-164.727457,0.00028219,7]
[335149130,1723890736671,-164.727457,0.00028219,7]
[335149131,1723890736682,-154.60848703,0.00028219,2]
[335149132,1723890736692,-929.15665419,0.00028219,2]
[335149133,1723890736704,-5055.6088158,0.00028219,2]
[335149134,1723890736715,-356.014522,0.00028219,7]
[335149135,1723890736726,-726.3002247,0.00028219,2]
[335149136,1723890736737,-356.014522,0.00028219,7]
[335149137,1723890736748,-651.7079192,0.00028219,2]
[335149138,1723890736760,-1917.39332726,0.00028219,2]
[335149139,1723890736771,-785.87672167,0.00028219,2]
[335149140,1723890736783,-542.65551815,0.00028219,2]
[335149141,1723890736794,-501.76191267,0.00028219,2]
[335149142,1723890736806,-1011.02240246,0.00028219,2]
[335149143,1723890736816,-530.30353292,0.00028219,2]
[335149144,1723890736827,-605.30706339,0.00028219,2]
[335149145,1723890736839,-752.02176149,0.00028219,2]
[335149146,1723890736850,-1556.44218615,0.00028219,2]
[335149147,1723890736861,-500.45022209,0.00028219,2]
[335149148,1723890736871,-752.72241674,0.00028219,2]
[335149149,1723890736881,-611.63972137,0.00028219,2]
[335149150,1723890736892,-492.18349507,0.00028219,2]
[335149151,1723890736902,-668.72,0.00028219,2]
[335149152,1723890736914,-842.1633106,0.00028219,2]
[335149153,1723890736925,-794.84095462,0.00028219,2]
[335149154,1723890736936,-533.91550964,0.00028219,2]
[335149155,1723890736947,-545.80042512,0.00028219,2]
[335149156,1723890736958,-588.49182025,0.00028219,2]
[335149157,1723890736969,-618.37737133,0.00028219,2]
[335149158,1723890736981,-500.43846394,0.00028219,2]
[335149159,1723890736992,-885.02,0.00028219,2]
[335149160,1723890737003,-864.72634831,0.00028219,2]
[335149161,1723890737013,-514.92408533,0.00028219,2]
[335149162,1723890737024,-553.38,0.00028219,2]
[335149163,1723890737034,-619.19888735,0.00028219,2]
[335149164,1723890737045,-693.61137227,0.00028219,2]
[335149165,1723890737056,-1401.13503832,0.00028219,2]
[335149166,1723890737069,-1038.48559992,0.00028219,2]
[335149167,1723890737079,-1018.44081111,0.00028219,2]
[335149168,1723890737090,-517.71484473,0.00028219,2]
[335149169,1723890737100,-531.11410314,0.00028219,2]
[335149170,1723890737110,-656.02085729,0.00028219,2]
[335149171,1723890737122,-591.98233597,0.00028219,2]
[335149172,1723890737132,-1232.8634406,0.00028219,2]
[335149173,1723890737143,-544.08483981,0.00028219,2]
[335149174,1723890737154,-571.35317715,0.00028219,2]
[335149175,1723890737164,-503.92794796,0.00028219,2]
[335149176,1723890737174,-725.54488072,0.00028219,2]
[335149177,1723890737183,-582.78445491,0.00028219,2]
[335149178,1723890737194,-739.42496908,0.00028219,2]
[335149179,1723890737204,-1438.85489595,0.00028219,2]
[335149180,1723890737215,-769.95913643,0.00028219,2]
[335149181,1723890737225,-2248.77615471,0.00028219,2]
[335149182,1723890737235,-657.69356319,0.00028219,2]
[335149183,1723890737244,-590.3828755,0.00028219,2]
[335149184,1723890737254,-788.24634229,0.00028219,2]
[335149185,1723890737264,-2904.3594293,0.00028219,2]
[335149186,1723890737274,-179.01739601,0.00028219,2]
[335149187,1723890737284,-737.83625714,0.00028219,2]
[335149188,1723890737294,-1068.00226715,0.00028219,2]
[335149189,1723890737304,-22187.26391079,0.00028219,2]
[335149190,1723890737313,-6948.97728819,0.00028219,2]
[335149191,1723890737323,-668.16040902,0.00028219,2]
[335149192,1723890737334,-1369.95573048,0.00028219,2]
[335149193,1723890737344,-1067.92973568,0.00028219,2]
[335149194,1723890737355,-2952.26674922,0.00028219,2]
[335149195,1723890737367,-1761.73407433,0.00028219,2]
[335149196,1723890737378,-1088.42500697,0.00028219,2]
[335149197,1723890737388,-1664.69863094,0.00028219,2]
[335149198,1723890737400,-616.91880532,0.00028219,2]
[335149199,1723890737412,-869.39079139,0.00028219,2]
[335149200,1723890737422,-1108.88249575,0.00028219,2]
[335149201,1723890737432,-905.61833307,0.00028219,2]
[335149202,1723890737441,-2520.2589446,0.00028219,2]
[335149203,1723890737452,-569.8,0.00028219,2]
[335149204,1723890737462,-3853.21071527,0.00028219,2]
[335149205,1723890737472,-2333.25885429,0.00028219,2]
[335149206,1723890737481,-679.96521553,0.00028219,2]
[335149207,1723890737491,-521.82902337,0.00028219,2]
[335149208,1723890737500,-2770.9071747,0.00028219,2]
[335149209,1723890737510,-692.93820813,0.00028219,2]
[335149210,1723890737519,-500.50947685,0.00028219,2]
[335149211,1723890737529,-1389.61154765,0.00028219,2]
[335149212,1723890737539,-500.0,0.00028486,2]
[335149213,1723890737549,-516.30825225,0.00028486,2]
[335149214,1723890737559,-500.0,0.00028486,2]
[335149215,1723890737570,-500.0,0.00028486,2]
[335149216,1723890737579,-500.0,0.00028486,2]
[335149217,1723890737590,-500.0,0.00028486,2]
[335149218,1723890737600,-500.0,0.00028486,2]
[335149219,1723890737610,-500.0,0.00028486,2]
[335149220,1723890737619,-511.8484324,0.00028486,2]
[335149221,1723890737629,-500.0,0.00028486,2]
[335149222,1723890737639,-500.0,0.00028486,2]
[335149223,1723890737649,-500.0,0.00028486,2]
[335149224,1723890737658,-500.0,0.00028486,2]
[335149225,1723890737668,-500.0,0.00028486,2]
[335149226,1723890737678,-500.0,0.00028486,2]
[335149227,1723890737689,-500.0,0.00028486,2]
[335149228,1723890737699,-500.0,0.00028486,2]
[335149229,1723890737709,-500.0,0.00028486,2]
[335149230,1723890737719,-500.0,0.00028486,2]
[335149231,1723890737729,-500.0,0.00028486,2]
[335149232,1723890737739,-500.0,0.00028486,2]
[335149233,1723890737749,-500.0,0.00028486,2]
[335149234,1723890737760,-501.54,0.00028486,2]
[335149235,1723890737772,-500.0,0.00028486,2]
[335149236,1723890737783,-500.0,0.00028486,2]
[335149237,1723890737795,-500.0,0.00028486,2]
[335149238,1723890737807,-500.0,0.00028486,2]
[335149239,1723890737817,-500.0,0.00028486,2]
[335149240,1723890737826,-500.0,0.00028486,2]
[335149241,1723890737836,-1683.39,0.00028486,2]
[335149242,1723890737846,-500.0,0.00028486,2]
[335149243,1723890737856,-500.0,0.00028486,2]
[335149244,1723890737866,-500.0,0.00028486,2]
[335149245,1723890737876,-500.0,0.00028486,2]
[335149246,1723890737886,-500.0,0.00028486,2]
[335149247,1723890737895,-500.0,0.00028486,2]
[335149248,1723890737905,-500.0,0.00028486,2]
[335149249,1723890737914,-500.0,0.00028486,2]
[335149250,1723890737924,-500.0,0.00028486,2]
[335149251,1723890737934,-344.64114859,0.00028486,2]
[335149252,1723890737944,-500.0,0.00028486,2]
[335149253,1723890737954,-500.0,0.00028486,2]
[335149254,1723890737964,-500.0,0.00028486,2]
[335149255,1723890737973,-500.0,0.00028486,2]
[335149256,1723890737983,-500.0,0.00028486,2]
[335149257,1723890737993,-500.0,0.00028486,2]
[335149258,1723890738003,-500.0,0.00028486,2]
[335149259,1723890738013,-500.0,0.00028486,2]
[335149260,1723890738023,-500.0,0.00028486,2]
[335149261,1723890738034,-500.0,0.00028486,2]
[335149262,1723890738043,-500.0,0.00028486,2]
[335149263,1723890738056,-500.0,0.00028486,2]
[335149264,1723890738071,-500.0,0.00028486,2]
[335149265,1723890738081,-500.0,0.00028486,2]
[335149266,1723890738091,-500.0,0.00028486,2]
[335149267,1723890738101,-500.0,0.00028486,2]
[335149268,1723890738110,-500.0,0.00028486,2]
[335149269,1723890738121,-500.0,0.00028486,2]
[335149270,1723890738132,-500.0,0.00028486,2]
[335149271,1723890738143,-500.0,0.00028486,2]
[335149272,1723890738154,-500.0,0.00028486,2]
[335149273,1723890738165,-500.0,0.00028486,2]
[335149274,1723890738176,-202.19894172,0.00028486,2]
[335149275,1723890738186,-500.0,0.00028486,2]
[335149276,1723890738195,-500.0,0.00028486,2]
[335149277,1723890738206,-547.89,0.00028486,2]
[335149278,1723890738216,-500.0,0.00028486,2]
[335149279,1723890738227,-500.0,0.00028486,2]
[335149280,1723890738237,-500.0,0.00028486,2]
[335149281,1723890738247,-500.0,0.00028486,2]
[335149282,1723890738258,-500.0,0.00028486,2]
[335149283,1723890738267,-500.0,0.00028486,2]
[335149284,1723890738278,-500.0,0.00028486,2]
[335149285,1723890738288,-500.0,0.00028486,2]
[335149286,1723890738299,-500.0,0.00028486,2]
[335149287,1723890738310,-500.0,0.00028486,2]
[335149288,1723890738320,-765.7,0.00028486,2]
[335149289,1723890738330,-500.0,0.00028486,2]
[335149290,1723890738341,-500.0,0.00028486,2]
[335149291,1723890738351,-500.0,0.00028486,2]
[335149292,1723890738362,-500.0,0.00028486,2]
[335149293,1723890738372,-500.0,0.00028486,2]
[335149294,1723890738382,-500.0,0.00028486,2]
[335149295,1723890738393,-500.0,0.00028486,2]
[335149296,1723890738405,-633.9,0.00028486,2]
[335149297,1723890738415,-500.0,0.00028486,2]
[335149298,1723890738425,-500.0,0.00028486,2]
[335149299,1723890738436,-500.0,0.00028486,2]
[335149300,1723890738446,-500.0,0.00028486,2]
[335149301,1723890738456,-500.0,0.00028486,2]
[335149302,1723890738466,-521.11,0.00028486,2]
[335149303,1723890738476,-500.0,0.00028486,2]
[335149304,1723890738486,-500.0,0.00028486,2]
[335149305,1723890738496,-500.0,0.00028486,2]
[335149306,1723890738506,-500.0,0.00028486,2]
[335149307,1723890738516,-500.0,0.00028486,2]
[335149308,1723890738525,-500.0,0.00028486,2]
[335149309,1723890738535,-775.16,0.00028486,2]
[335149310,1723890738544,-500.0,0.00028486,2]
[335149311,1723890738555,-571.1,0.00028486,2]
[335149312,1723890738565,-500.0,0.00028486,2]
[335149313,1723890738574,-668.62,0.00028486,2]
[335149314,1723890738584,-511.68736097,0.00028486,2]
[335149315,1723890738595,-500.0,0.00028486,2]
[335149316,1723890738606,-500.0,0.00028486,2]
[335149317,1723890738617,-731.12,0.00028486,2]
[335149318,1723890738627,-500.0,0.00028486,2]
[335149319,1723890738637,-632.17,0.00028486,2]
[335149320,1723890738647,-500.0,0.00028486,2]
[335149321,1723890738657,-593.02,0.00028486,2]
[335149322,1723890738667,-656.84,0.00028486,2]
[335149323,1723890738678,-633.28,0.00028486,2]
[335149324,1723890738688,-500.0,0.00028486,2]
[335149325,1723890738698,-573.37928044,0.00028486,2]
[335149326,1723890738708,-500.0,0.00028486,2]
[335149327,1723890738719,-521.1,0.00028486,2]
[335149328,1723890738730,-500.0,0.00028486,2]
[335149329,1723890738741,-500.0,0.00028486,2]
[335149330,1723890738751,-500.0,0.00028486,2]
[335149331,1723890738760,-500.0,0.00028486,2]
[335149332,1723890738771,-500.0,0.00028486,2]
[335149333,1723890738782,-500.0,0.00028486,2]
[335149334,1723890738792,-500.0,0.00028486,2]
[335149335,1723890738802,-500.0,0.00028486,2]
[335149336,1723890738811,-764.51,0.00028486,2]
[335149337,1723890738820,-500.0,0.00028486,2]
[335149338,1723890738831,-500.0,0.00028486,2]
[335149339,1723890738843,-500.0,0.00028486,2]
[335149340,1723890738853,-500.0,0.00028486,2]
[335149341,1723890738863,-625.26,0.00028486,2]
[335149342,1723890738873,-500.0,0.00028486,2]
[335149343,1723890738883,-625.29,0.00028486,2]
[335149344,1723890738892,-484.75345621,0.00028486,2]
[335149345,1723890738902,-500.0,0.00028486,2]
[335149346,1723890738911,-180.14438652,0.00028486,2]
[335149347,1723890738920,-1302.63559918,0.00028492,2]
[335149348,1723890738932,-3815.54708071,0.00028492,2]
[335149349,1723890738942,-1463.21955474,0.00028492,2]
[335149350,1723890738952,-1313.94457522,0.00028492,2]
[335149351,1723890738961,-557.38254369,0.00028492,2]
[335149352,1723890738972,-4587.98879547,0.00028492,2]
[335149353,1723890738982,-1281.50774095,0.00028492,2]
[335149354,1723890738994,-1297.1645775,0.00028492,2]
[335149355,1723890739004,-1380.37787412,0.00028492,2]
[335149356,1723890739013,-3298.1651937,0.00028492,2]
[335149357,1723890739023,-2369.16241016,0.00028492,2]
[335149358,1723890739033,-3259.17464158,0.00028492,2]
[335149359,1723890739042,-2059.836626,0.00028492,2]
[335149360,1723890739052,-558.70646187,0.00028492,2]
[335149361,1723890739063,-1089.45592727,0.00028492,2]
[335149362,1723890739075,-4118.96194732,0.00028492,2]
[335149363,1723890739084,-538.01302306,0.00028492,2]
[335149364,1723890739094,-312.10450829,0.00028493,2]
[335149365,1723890739104,-154.284512,0.00028493,7]
[335149366,1723890739115,-501.89032655,0.00028493,2]
[335149367,1723890739124,-500.0,0.00028493,2]
[335149368,1723890739134,-500.0,0.00028493,2]
[335149369,1723890739144,-500.0,0.00028493,2]
[335149370,1723890739155,-500.0,0.00028493,2]
[335149371,1723890739165,-500.0,0.00028493,2]
[335149372,1723890739175,-500.0,0.00028493,2]
[335149373,1723890739185,-500.0,0.00028493,2]
[335149374,1723890739196,-500.0,0.00028493,2]
[335149375,1723890739207,-500.0,0.00028493,2]
[335149376,1723890739216,-500.0,0.00028493,2]
[335149377,1723890739227,-500.0,0.00028493,2]
[335149378,1723890739237,-500.0,0.00028493,2]
[335149379,1723890739246,-500.0,0.00028493,2]
[335149380,1723890739256,-500.0,0.00028493,2]
[335149381,1723890739265,-605.10018171,0.00028493,2]
[335149382,1723890739275,-500.0,0.00028493,2]
[335149383,1723890739285,-500.0,0.00028493,2]
[335149384,1723890739295,-500.0,0.00028493,2]
[335149385,1723890739305,-500.0,0.00028493,2]
[335149386,1723890739315,-500.0,0.00028493,2]
[335149387,1723890739325,-500.0,0.00028493,2]
[335149388,1723890739335,-561.21,0.00028493,2]
[335149389,1723890739345,-500.0,0.00028493,2]
[335149390,1723890739356,-500.0,0.00028493,2]
[335149391,1723890739366,-500.0,0.00028493,2]
[335149392,1723890739376,-500.0,0.00028493,2]
[335149393,1723890739387,-500.0,0.00028493,2]
[335149394,1723890739398,-500.0,0.00028493,2]
[335149395,1723890739551,-500.0,0.00028493,2]
[335149396,1723890739577,-500.0,0.00028493,2]
[335149397,1723890739588,-500.0,0.00028493,2]
[335149398,1723890739598,-500.0,0.00028493,2]
[335149399,1723890739608,-500.0,0.00028493,2]
[335149400,1723890739618,-1000.0,0.00028493,2]
[335149401,1723890739628,-151.0,0.00028493,5]
[335149402,1723890739638,-678.901847,0.00028493,7]
[335149403,1723890739648,-151.0,0.00028493,7]
[335149404,1723890739658,-678.901847,0.00028493,7]
[335149405,1723890739668,-151.0,0.00028493,7]
[335149406,1723890739678,-271.364326,0.00028493,7]
[335149407,1723890739689,-501.433027,0.00028493,2]
[335149408,1723890739700,-501.433027,0.00028493,2]
[335149409,1723890739710,-803.858624,0.00028493,7]
[335149410,1723890739720,-803.858619,0.00028493,7]
[335149411,1723890739731,-164.727457,0.00028493,7]
[335149412,1723890739742,-164.727462,0.00028493,7]
[335149413,1723890739754,-356.014522,0.00028493,7]
[335149414,1723890739764,-356.014525,0.00028493,7]
[335149415,1723890739774,-3260.29766739,0.000287,2]
[335149416,1723890739784,-3260.29766739,0.000287,2]
[335149417,1723890739794,-2305.46806736,0.000287,2]
[335149418,1723890739804,-2305.46806734,0.000287,2]
[335149419,1723890739815,-2305.46806734,0.000287,2]
[335149420,1723890739825,-2305.46806734,0.000287,2]
[335149421,1723890739836,-155.0,0.0002874,19]
[335149422,1723890739845,-500.0,0.0002876,2]
[335149423,1723890739856,-500.0,0.0002876,2]
[335149424,1723890739867,-500.0,0.0002876,2]
[335149425,1723890739878,-500.0,0.0002876,2]
[335149426,1723890739888,-500.0,0.0002876,2]
[335149427,1723890739898,-500.0,0.0002876,2]
[335149428,1723890739908,-500.0,0.0002876,2]
[335149429,1723890739918,-500.0,0.0002876,2]
[335149430,1723890739928,-500.0,0.0002876,2]
[335149431,1723890739939,-505.22338585,0.0002876,2]
[335149432,1723890739950,-500.0,0.0002876,2]
[335149433,1723890739960,-500.0,0.0002876,2]
[335149434,1723890739970,-500.0,0.0002876,2]
[335149435,1723890739983,-500.0,0.0002876,2]
[335149436,1723890739992,-500.0,0.0002876,2]
[335149437,1723890740003,-500.0,0.0002876,2]
[335149438,1723890740013,-500.0,0.0002876,2]
[335149439,1723890740024,-500.0,0.0002876,2]
[335149440,1723890740033,-500.0,0.0002876,2]
[335149441,1723890740043,-500.0,0.0002876,2]
[335149442,1723890740053,-501.54,0.0002876,2]
[335149443,1723890740065,-500.0,0.0002876,2]
[335149444,1723890740076,-184.79127551,0.0002876,2]
[335149445,1723890740086,-500.0,0.0002876,2]
[335149446,1723890740098,-500.0,0.0002876,2]
[335149447,1723890740109,-500.0,0.0002876,2]
[335149448,1723890740119,-500.0,0.0002876,2]
[335149449,1723890740131,-1683.39,0.0002876,2]
[335149450,1723890740143,-177.54972416,0.0002876,2]
[335149451,1723890740153,-500.0,0.0002876,2]
[335149452,1723890740163,-500.0,0.0002876,2]
[335149453,1723890740173,-500.0,0.0002876,2]
[335149454,1723890740186,-271.364333,0.0002876,7]
[335149455,1723890740197,-500.0,0.0002876,2]
[335149456,1723890740209,-500.0,0.0002876,2]
[335149457,1723890740222,-500.0,0.0002876,2]
[335149458,1723890740235,-500.0,0.0002876,2]
[335149459,1723890740247,-500.0,0.0002876,2]
[335149460,1723890740259,-500.0,0.0002876,2]
[335149461,1723890740270,-501.433027,0.0002876,2]
[335149462,1723890740280,-501.433018,0.0002876,2]
[335149463,1723890740291,-500.0,0.0002876,2]
[335149464,1723890740302,-500.0,0.0002876,2]
[335149465,1723890740311,-500.0,0.0002876,2]
[335149466,1723890740321,-500.0,0.0002876,2]
[335149467,1723890740331,-500.0,0.0002876,2]
[335149468,1723890740341,-500.0,0.0002876,2]
[335149469,1723890740351,-569.27336371,0.0002876,2]
[335149470,1723890740361,-500.0,0.0002876,2]
[335149471,1723890740372,-500.0,0.0002876,2]
[335149472,1723890740382,-500.0,0.0002876,2]
[335149473,1723890740392,-500.0,0.0002876,2]
[335149474,1723890740402,-500.0,0.0002876,2]
[335149475,1723890740412,-500.0,0.0002876,2]
[335149476,1723890740423,-500.0,0.0002876,2]
[335149477,1723890740436,-500.0,0.0002876,2]
[335149478,1723890740447,-500.0,0.0002876,2]
[335149479,1723890740457,-500.0,0.0002876,2]
[335149480,1723890740467,-500.0,0.0002876,2]
[335149481,1723890740479,-500.0,0.0002876,2]
[335149482,1723890740490,-500.0,0.0002876,2]
[335149483,1723890740500,-500.0,0.0002876,2]
[335149484,1723890740511,-500.0,0.0002876,2]
[335149485,1723890740521,-500.0,0.0002876,2]
[335149486,1723890740531,-547.89,0.0002876,2]
[335149487,1723890740541,-573.1158366,0.0002876,2]
[335149488,1723890740551,-500.0,0.0002876,2]
[335149489,1723890740563,-500.0,0.0002876,2]
[335149490,1723890740573,-500.0,0.0002876,2]
[335149491,1723890740583,-500.0,0.0002876,2]
[335149492,1723890740593,-500.0,0.0002876,2]
[335149493,1723890740603,-500.0,0.0002876,2]
[335149494,1723890740614,-500.0,0.0002876,2]
[335149495,1723890740624,-638.94696661,0.0002876,2]
[335149496,1723890740634,-500.0,0.0002876,2]
[335149497,1723890740644,-765.7,0.0002876,2]
[335149498,1723890740654,-500.0,0.0002876,2]
[335149499,1723890740664,-500.0,0.0002876,2]
[335149500,1723890740673,-500.0,0.0002876,2]
[335149501,1723890740684,-500.0,0.0002876,2]
[335149502,1723890740694,-500.0,0.0002876,2]
[335149503,1723890740704,-500.0,0.0002876,2]
[335149504,1723890740714,-505.52444302,0.0002876,2]
[335149505,1723890740724,-633.9,0.0002876,2]
[335149506,1723890740735,-500.0,0.0002876,2]
[335149507,1723890740746,-500.0,0.0002876,2]
[335149508,1723890740757,-500.0,0.0002876,2]
[335149509,1723890740766,-500.0,0.0002876,2]
[335149510,1723890740776,-500.0,0.0002876,2]
[335149511,1723890740786,-521.11,0.0002876,2]
[335149512,1723890740796,-500.0,0.0002876,2]
[335149513,1723890740806,-500.0,0.0002876,2]
[335149514,1723890740817,-352.26910677,0.0002876,2]
[335149515,1723890740827,-500.0,0.0002876,2]
[335149516,1723890740837,-500.0,0.0002876,2]
[335149517,1723890740847,-500.0,0.0002876,2]
[335149518,1723890740858,-775.16,0.0002876,2]
[335149519,1723890740869,-500.0,0.0002876,2]
[335149520,1723890740880,-571.1,0.0002876,2]
[335149521,1723890740890,-500.0,0.0002876,2]
[335149522,1723890740903,-668.62,0.0002876,2]
[335149523,1723890740913,-500.0,0.0002876,2]
[335149524,1723890740924,-500.0,0.0002876,2]
[335149525,1723890740934,-731.12,0.0002876,2]
[335149526,1723890740944,-500.0,0.0002876,2]
[335149527,1723890740954,-632.17,0.0002876,2]
[335149528,1723890740963,-500.0,0.0002876,2]
[335149529,1723890740973,-593.02,0.0002876,2]
[335149530,1723890740983,-656.84,0.0002876,2]
[335149531,1723890740994,-633.28,0.0002876,2]
[335149532,1723890741003,-500.0,0.0002876,2]
[335149533,1723890741013,-500.0,0.0002876,2]
[335149534,1723890741023,-521.1,0.0002876,2]
[335149535,1723890741032,-500.0,0.0002876,2]
[335149536,1723890741042,-500.0,0.0002876,2]
[335149537,1723890741052,-627.01348895,0.0002876,2]
[335149538,1723890741061,-500.0,0.0002876,2]
[335149539,1723890741075,-500.0,0.0002876,2]
[335149540,1723890741084,-500.0,0.0002876,2]
[335149541,1723890741095,-500.0,0.0002876,2]
[335149542,1723890741104,-500.0,0.0002876,2]
[335149543,1723890741114,-764.51,0.0002876,2]
[335149544,1723890741123,-500.0,0.0002876,2]
[335149545,1723890741134,-500.0,0.0002876,2]
[335149546,1723890741143,-500.0,0.0002876,2]
[335149547,1723890741152,-500.0,0.0002876,2]
[335149548,1723890741161,-625.26,0.0002876,2]
[335149549,1723890741173,-500.0,0.0002876,2]
[335149550,1723890741182,-625.29,0.0002876,2]
[335149551,1723890741191,-500.0,0.0002876,2]
[335149552,1723890741201,-500.0,0.00028767,2]
[335149553,1723890741211,-500.0,0.00028767,2]
[335149554,1723890741221,-500.0,0.00028767,2]
[335149555,1723890741230,-500.0,0.00028767,2]
[335149556,1723890741240,-500.0,0.00028767,2]
[335149557,1723890741250,-500.0,0.00028767,2]
[335149558,1723890741259,-500.0,0.00028767,2]
[335149559,1723890741268,-500.0,0.00028767,2]
[335149560,1723890741277,-500.0,0.00028767,2]
[335149561,1723890741287,-500.0,0.00028767,2]
[335149562,1723890741296,-500.0,0.00028767,2]
[335149563,1723890741306,-500.0,0.00028767,2]
[335149564,1723890741315,-500.0,0.00028767,2]
[335149565,1723890741325,-500.0,0.00028767,2]
[335149566,1723890741334,-500.0,0.00028767,2]
[335149567,1723890741344,-500.0,0.00028767,2]
[335149568,1723890741354,-500.0,0.00028767,2]
[335149569,1723890741363,-500.0,0.00028767,2]
[335149570,1723890741372,-500.0,0.00028767,2]
[335149571,1723890741382,-500.0,0.00028767,2]
[335149572,1723890741391,-561.21,0.00028767,2]
[335149573,1723890741400,-500.0,0.00028767,2]
[335149574,1723890741409,-500.0,0.00028767,2]
[335149575,1723890741418,-526.46744832,0.00028767,2]
[335149576,1723890741428,-500.0,0.00028767,2]
[335149577,1723890741438,-500.0,0.00028767,2]
[335149578,1723890741447,-500.0,0.00028767,2]
[335149579,1723890741457,-500.0,0.00028767,2]
[335149580,1723890741467,-500.0,0.00028767,2]
[335149581,1723890741476,-474.0147453,0.00028767,2]
[335149582,1723890741486,-500.0,0.00028767,2]
[335149583,1723890741495,-500.0,0.00028767,2]
[335149584,1723890741505,-152.382192,0.00028767,5]
[335149585,1723890741517,-678.901847,0.00028767,7]
[335149586,1723890741531,-151.0,0.00028767,7]
[335149587,1723890741545,-678.901847,0.00028767,7]
[335149588,1723890741557,-151.0,0.00028767,7]
[335149589,1723890741571,-350.102385,0.00028767,7]
[335149590,1723890741585,-153.0,0.00028767,2]
[335149591,1723890741599,-153.0,0.00028767,2]
[335149592,1723890741613,-153.0,0.00028767,2]
[335149593,1723890741630,-153.0,0.00028767,2]
[335149594,1723890741642,-171.5388811,0.00028849,2]
[335149595,1723890741657,-294.8692653,0.00028849,2]
[335149596,1723890741672,-153.0,0.00028849,2]
[335149597,1723890741686,-294.8692653,0.00028849,2]